Cogmind - Beta 16.1 @@@ ROGUE MODE // 2026.02.18 @ 16:09:58 Player: AlmondRoll Result: Destroyed by 4A-QQN(R) with Subdweller Beam Cannon Performance ------------- Evolutions (0) 0 Regions Visited (2) 400 Robots Destroyed (52) 260 Value Destroyed (683) 683 Prototype IDs (0) 0 Alien Tech Used (0) 0 Bonus (0) 0 TOTAL SCORE: 1343 Bonus ------- None Cogmind --------- Core Integrity 0/250 Matter 190/300 Energy 200/200 System Corruption 0% Temperature Cool (9) Movement Treading (320) Ox2 Location -10/Subcaves Parts ------- > --- POWER (1) -------- Subdweller Power Source > --- PROPULSION (2) --- Light Treads Subdweller Monowheel > --- UTILITY (2) ------ Improved Heat Sink High-capacity Storage Unit > --- WEAPON (2) ------- Subdweller Machine Gun Subdweller Machine Gun > --- INVENTORY (20) --- Light Nuclear Core Compact Wheel Compact Wheel Compact Wheel Medium Storage Unit Medium Matter Pod (100) Medium Matter Pod (100) Medium Matter Pod (100) Large Matter Pod (150) Large Matter Pod (150) Large Matter Pod (150) High-capacity Matter Pod (200) High-capacity Matter Pod (200) Structural Scanner Structural Scanner Machine Analyzer Tractor Beam EM Pulse Gun Light Assault Rifle Mining Laser Peak State ------------ > --- POWER ------------ Subdweller Power Source > --- PROPULSION ------- Light Treads Subdweller Monowheel > --- UTILITY ---------- Improved Heat Sink High-capacity Storage Unit > --- WEAPON ----------- Subdweller Machine Gun Subdweller Machine Gun > --- INVENTORY -------- Light Nuclear Core Compact Wheel Compact Wheel Compact Wheel Medium Storage Unit Medium Matter Pod Medium Matter Pod Medium Matter Pod Large Matter Pod Large Matter Pod Large Matter Pod High-capacity Matter Pod High-capacity Matter Pod Structural Scanner Structural Scanner Machine Analyzer Tractor Beam EM Pulse Gun Light Assault Rifle Mining Laser [Rating: 15] Favorites ----------- Power Ion Engine Engine Ion Engine Power Core Light Nuclear Core Propulsion Light Treads Treads Light Treads Leg Aluminum Leg Wheel Subdweller Monowheel Utility High-capacity Storage Unit Device Tractor Beam Storage High-capacity Storage Unit Weapon Light Cannon Energy Gun Small Laser Ballistic Gun Assault Rifle Ballistic Cannon Light Cannon Special Weapon Mining Laser Build | -11 -10 -10 ------- Run | Yrd Mat Sub Slots Evolved . | . . . Power . | . . . Propulsion . | . . . Utility . | . . . Weapon . | . . . Parts Attached 21 | 2 9 10 Power 3 | . 1 2 Engine 2 | . . 2 Core 1 | . 1 . Reactor . | . . . Propulsion 5 | 2 . 3 Treads 3 | 2 . 1 Leg . | . . . Wheel 2 | . . 2 Hover . | . . . Flight . | . . . Utility 6 | . 5 1 Device 4 | . 3 1 Storage 2 | . 2 . Processor . | . . . Hackware . | . . . Protection . | . . . Artifact . | . . . Weapon 7 | . 3 4 Energy Gun 1 | . . 1 Energy Cannon . | . . . Ballistic Gun 4 | . 2 2 Ballistic Cannon 1 | . 1 . Launcher . | . . . Special Weapon 1 | . . 1 Impact Weapon . | . . . Slashing Weapon . | . . . Piercing Weapon . | . . . Special Melee Weapon . | . . . Unidentified Prototypes . | . . . Parts Lost 4 | . 2 2 Power 1 | . . 1 Propulsion . | . . . Utility 1 | . 1 . Weapon 2 | . 1 1 Highest Loss Streak 2 | . 2 1 To Critical Strikes . | . . . Average Backups 17 | 4 16 19 Power 1 | 1 1 1 Propulsion 3 | 2 3 3 Utility 10 | . 9 12 Weapon 2 | 1 2 2 Tool/Special . | . . . Unused Backups 16 | . 3 13 Power 3 | . 2 1 Propulsion 3 | . 1 2 Utility 10 | . . 10 Weapon . | . . . Tool/Special . | . . . Average Slot Usage (%) 98 | . 98 98 Engine 9 | . 10 6 Core 4 | . 3 6 Treads 25 | . 27 20 Wheel 2 | . . 7 Device 13 | . 12 14 Storage 14 | . 14 14 Energy Gun 1 | . 1 . Ballistic Gun 14 | . 13 17 Ballistic Cannon 10 | . 12 7 Peak Build Rating 15 | 6 11 15 Average Rating 10 | 6 9 12 On Entrance 7 | 6 6 11 Avg Prop Armor Cover (%) 11 | . 10 11 Naked Turns . | . . . Heaviest Build 54 | 13 51 54 Greatest Support 40 | 40 40 20 Greatest Overweight (x) 2 | . 2 2 Average Overweight (x) 1 | . . 2 Largest Inventory Capacity 20 | 8 20 20 Average Capacity 18 | 8 18 20 Most Carried 20 | 6 20 20 Average Carried 17 | 4 16 19 Final Capacity 20 | 8 20 20 Final Carried 20 | 4 20 20 Class Distribution -------------------- 88% | Mutant 11% | Scavenger-Mutant Dominant Class ---------------- Mutant | -10/Materials Mutant | -10/Subcaves Resources | -11 -10 -10 ----------- Run | Yrd Mat Sub Matter Collected 2207 | 204 1670 333 Remotely 1175 | . 1031 144 Salvage Created 1435 | 62 1240 133 Parts 102 | 2 90 10 Haulers Intercepted 2 | . 2 . Recyclers Shooed 3 | 1 2 . Parts Field Recycled . | . . . Retrieved Matter . | . . . Parts Self-Destructed 10 | . . 10 Prevented . | . . . Parts Restored . | . . . Kills | -11 -10 -10 ------- Run | Yrd Mat Sub Combat Hostiles Destroyed 17 | . 11 6 Guns 7 | . 2 5 Cannons 10 | . 9 1 Classes Destroyed 11 | 1 8 2 Worker 11 | . 11 . Builder 4 | . 4 . Tunneler 4 | . 4 . Hauler 2 | . 2 . Recycler 8 | 1 7 . Operator 2 | . 2 . Turret 2 | . . 2 Watcher 2 | . 2 . Swarmer 7 | . 3 4 Grunt 8 | . 8 . Subdweller 2 | . . 2 Best Kill Streak 6 | 1 6 6 Combat Bots Only 5 | . 5 4 Max Kills in Single Turn 1 | 1 1 1 Gunslinging . | . . . Exploded . | . . . Melee . | . . . Uniques/NPCs Destroyed . | . . . Combat | -11 -10 -10 -------- Run | Yrd Mat Sub Hostile Shots Fired 181 | . 53 128 Missed 61 | . 19 42 Hits 120 | . 34 86 Projectile 120 | . 34 86 Critical Strikes 3 | . . 3 Damage Taken 1308 | . 398 910 Core 271 | . 20 251 Absorbed by Shields . | . . . Regen/Repaired (Parts) 76 | . 76 . Core Remaining (%) 100 | 100 . . Volleys Fired 143 | 4 90 49 Largest 2 | 2 2 2 Hottest 100 | 60 60 100 Shots Fired 273 | 8 174 91 Gun 163 | 8 92 63 Cannon 105 | . 82 23 Launcher . | . . . Special 5 | . . 5 Kinetic 254 | 4 166 84 Thermal 19 | 4 8 7 Explosive . | . . . Electromagnetic . | . . . Robot Hit Streak 17 | 4 11 17 Robot Miss Streak 5 | 1 5 4 Penetration Max . | . . . Secondary Targets 2 | . . 2 Max Gunslinging Chain 1 | . . 1 Shots Hit Robots 162 | 5 94 63 Core Hits 66 | 2 51 13 Critical Kills . | . . . Critical Parts Destroyed 1 | . 1 . Critical Strikes 4 | . 3 1 Destroy 1 | . 1 . Blast 3 | . 2 1 Melee Attacks . | . . . Impact . | . . . Slashing . | . . . Piercing . | . . . Sneak Attacks . | . . . Combat Hostiles . | . . . Follow-up Attacks . | . . . Damage Inflicted 2386 | 53 1519 814 Guns 1139 | 53 541 545 Cannons 1245 | . 976 269 Explosions . | . . . Melee . | . . . Ramming 2 | . 2 . Kinetic 2261 | 20 1449 792 Thermal 123 | 33 68 22 Explosive . | . . . Electromagnetic . | . . . Impact . | . . . Slashing . | . . . Piercing . | . . . Highest Corruption . | . . . Average Corruption . | . . . Corruption Purged . | . . . Corruption Blocked . | . . . Overload Shots . | . . . Overflow Damage . | . . . Projectiles . | . . . Explosions . | . . . Melee . | . . . Knockbacks 10 | . 6 4 Impact . | . . . Kinetic 10 | . 6 4 Secondary . | . . . Self-Inflicted Damage . | . . . Shots . | . . . Rammed 2 | . 2 . Targets Rammed 2 | . 2 . Kicked . | . . . Crushed . | . . . Highest Temperature 28 | . 28 . Average Temperature 9 | . 9 . Received Heat Transfer 543 | . 186 357 Siege Activations . | . . . Martial Activations . | . . . Shielding Activations . | . . . Robots Disrupted . | . . . Combat Hostiles . | . . . Robots Corrupted . | . . . Combat Hostiles . | . . . Parts Fried . | . . . Impact Corruptions . | . . . Robots Melted . | . . . Combat Hostiles . | . . . Parts Melted . | . . . Heat Transferred 275 | 75 150 50 Parts Sabotaged . | . . . Parts Stolen . | . . . Parts Stripped . | . . . Power Chain Reactions . | . . . Alert | -11 -10 -10 ------- Run | Yrd Mat Sub Maximum Alert Level . | . . . Low Security (%) 100 | 100 100 . Level 1 . | . . . Level 2 . | . . . Level 3 . | . . . Level 4 . | . . . Level 5 . | . . . High Security . | . . . Max Security . | . . . Peak Influence 125 | 5 125 . Initial . | . . . Average 48 | 1 48 . Influence Increases 765 | 5 520 240 Destroy 0b10 Robot/C 340 | . 220 120 Destroy 0b10 Robot/NC 165 | 5 160 . Destroy Leader 68 | . 68 . Successful Hack 56 | . 56 . Destroy Structure 1 | . 1 . Partial Spotted 15 | . 15 . Lose Combat Pursuer 120 | . . 120 Influence Decreases 605 | 5 418 182 Entered New Map 50 | . . 50 Time Decay 535 | 5 398 132 Lost Part 20 | . 20 . Squads Dispatched 3 | . 3 . Investigation 1 | . 1 . Extermination . | . . . Reinforcement 2 | . 2 . Assault . | . . . Garrison . | . . . Intercept . | . . . Searches Triggered . | . . . Construction Impeded . | . . . Haulers Reinforced . | . . . Active Scanning Responses . | . . . Cargo Convoy Interrupts . | . . . Stealth | -11 -10 -10 --------- Run | Yrd Mat Sub Distress Signals 1 | . 1 . Communications Jammed . | . . . Distress Signals . | . . . Times Spotted 29 | . 17 12 Peak Tracking Total 5 | . 5 4 Tactical Retreats 2 | . . 2 Traps | -11 -10 -10 ------- Run | Yrd Mat Sub Traps Triggered . | . . . Indirectly . | . . . Trap Hack Attempts . | . . . Triggered . | . . . Disarmed . | . . . Reprogrammed . | . . . Reused . | . . . Traps Extracted . | . . . Installed . | . . . Triggered . | . . . Machines | -11 -10 -10 ---------- Run | Yrd Mat Sub Machines Disabled 2 | . . 2 Max in Single Turn 1 | . . 1 Machines Repaired . | . . . Machines Dismantled . | . . . Machines Sabotaged . | . . . Overloaded Fab Kills . | . . . Hacking | -11 -10 -10 --------- Run | Yrd Mat Sub Machines Accessed 7 | . 7 . Terminals 5 | . 5 . Fabricators . | . . . Repair Stations 1 | . 1 . Recycling Units 1 | . 1 . Scanalyzers . | . . . Garrison Access . | . . . Total Hacks 25 | . 25 . Successful 14 | . 14 . Failed 11 | . 11 . Catastrophic 3 | . 3 . Database Lockouts . | . . . Manual 8 | . 8 . Terminals 14 | . 14 . Fabricators . | . . . Repair Stations 6 | . 6 . Recycling Units 5 | . 5 . Scanalyzers . | . . . Garrison Access . | . . . Terminal Hacks 7 | . 7 . Robot Analysis 3 | . 3 . Locate Traps 3 | . 3 . Hauler Manifests 1 | . 1 . Fabricator Hacks . | . . . Repair Station Hacks 3 | . 3 . Scan Component 2 | . 2 . Repair 1 | . 1 . Recycling Unit Hacks 1 | . 1 . Retrieve Components 1 | . 1 . Scanalyzer . | . . . Garrison Access Hacks . | . . . Unauthorized Hacks 3 | . 3 . Terminals . | . . . Fabricators . | . . . Repair Stations . | . . . Recycling Units 3 | . 3 . Monitor 1 | . 1 . Reject 1 | . 1 . Recyclers 1 | . 1 . Scanalyzers . | . . . Garrison Access . | . . . Data Cores Recovered . | . . . Used . | . . . Hacking Detections 7 | . 7 . Full Trace Events 2 | . 2 . Feedback Events . | . . . Feedback Blocked . | . . . Robot Schematics Acquired . | . . . Robots Built . | . . . Authchips . | . . . Time . | . . . Total Robot Build Rating . | . . . Part Schematics Acquired . | . . . Parts Built . | . . . Authchips . | . . . Time . | . . . Total Part Build Rating . | . . . Part Studies Acquired . | . . . Parts Repaired 1 | . 1 . Time 13 | . 13 . Parts Recycled . | . . . Recycled Matter . | . . . Retrieved Matter . | . . . Retrieved Components 7 | . 7 . Parts Scanalyzed . | . . . Part Schematics Acquired . | . . . Parts Damaged . | . . . Bothacking | -11 -10 -10 ------------ Run | Yrd Mat Sub Used RIF Installer . | . . . Robots Hacked . | . . . Non-combat . | . . . Combat . | . . . Robot Hacks Applied . | . . . Relay Couplers Released . | . . . Fabnet Peak Effective % . | . . . Robots Rewired . | . . . Allies Hacked . | . . . Hacks Repelled . | . . . Allies | -11 -10 -10 -------- Run | Yrd Mat Sub Total Allies . | . . . Largest Group . | . . . Highest-Rated Group . | . . . Highest-Rated Ally . | . . . Total Orders . | . . . Ally Attacks . | . . . Total Damage . | . . . Kills . | . . . Allies Corrupted . | . . . Allies Melted . | . . . Intel | -11 -10 -10 ------- Run | Yrd Mat Sub Active Infowar (turns) 438 | . 438 . Structural 438 | . 438 . Robot Analysis Total 3 | . 3 . Derelict Logs Recovered . | . . . Drone Launches . | . . . Drone Recoveries . | . . . Exploration | -11 -10 -10 ------------- Run | Yrd Mat Sub Turns Passed 2564 | 23 1747 794 Spaces Moved 932 | 5 618 309 Core . | . . . Treads 728 | 5 618 105 Legs . | . . . Wheels 204 | . . 204 Hover . | . . . Flight . | . . . Fastest Speed 130 | 160 160 130 Average Speed 214 | 160 224 194 Slowest Speed 320 | 160 320 320 Overloaded Moves . | . . . Propulsion Burnouts . | . . . Robots Hopped . | . . . Potential Cave-ins . | . . . Cave-ins Triggered . | . . . Exploration Rate (%) 35 | 2 82 23 Regions Visited 2 Branch Regions 1 Pre-discovered Areas . | . . . Known Exits Taken . | . . . Unknown Exits Taken 2 | 1 1 . Scrap Searched . | . . . Spaces Dug . | . . . Terrain Destroyed . | . . . Melee . | . . . Projectile . | . . . AOE . | . . . Terrain Rammed . | . . . Walls Destroyed . | . . . Machines Disabled . | . . . Actions | -11 -10 -10 --------- Run | Yrd Mat Sub Total 1219 | 12 804 403 Wait 88 | . 62 26 Move 930 | 4 617 309 Hop . | . . . Pick Up 20 | . 18 2 Fast Attach 9 | . 5 4 Attach 1 | . . 1 Detach . | . . . Swap 14 | 2 5 7 Drop 12 | 2 5 5 Fire 143 | 4 90 49 Melee . | . . . Ram . | . . . Kick . | . . . Crush 2 | . 2 . Escape Stasis . | . . . Rewire . | . . . Trap . | . . . Miscellaneous . | . . . Route ------- -11/Scrapyard -10/Materials (discovered 5 exits: [*Mat x2] / [*Min x2] / [*Sub]) -10/Subcaves (discovered 1 exit: [*Rec]) History --------- Turn | Location | Event 17 | -11/Scrapyard | Discovered new exit (range 3) 24 | -11/Scrapyard | Entered Materials 256 | -10/Materials | Discovered new exit (range 7) 313 | -10/Materials | Build established: Mutant 836 | -10/Materials | Discovered new exit (range 6) 870 | -10/Materials | Discovered new exit (range 11) 1347 | -10/Materials | Discovered new exit (range 15) 1734 | -10/Materials | Repaired Lgt. Treads 1758 | -10/Materials | Discovered new exit (range 5) 1771 | -10/Materials | Entered Subcaves 1772 | -10/Subcaves | Approached by a straggling Scientist 1831 | -10/Subcaves | Curiously followed by a Cobbler waking with a query about "LVR3C" 2203 | -10/Subcaves | Core integrity fell below 50% 2241 | -10/Subcaves | Shifting Twisted Machinery released Sub. Power Source 2243 | -10/Subcaves | Shifting Twisted Machinery released Sub. Machine Gun 2362 | -10/Subcaves | Discovered new exit (range 8) 2384 | -10/Subcaves | Core integrity fell below 20% 2565 | -10/Subcaves | Destroyed by 4A-QQN(R) with Subdweller Beam Cannon Last Messages --------------- 02369_ Destroyed Flight Unit. 02369_ S-10 Pest destroyed. 02370_ Lgt. Ion Engine fries itself beyond repair. 02372_ Flight Unit fries itself beyond repair. 02372_ Destroyed Flight Unit. 02373_ Flight Unit fries itself beyond repair. 02378_ Lgt. Assault Rifle fries itself beyond repair. 02378_ S-10 Pest destroyed. 02381_ Acquired 16 matter. 02383_ Lgt. Ion Engine fries itself beyond repair. 02383_ Machine disabled. 02384_ Flight Unit fries itself beyond repair. 02390_ Lgt. Assault Rifle fries itself beyond repair. 02398_ Autobeam Turret destroyed. 02398_ Switching to secondary target: Autobeam Turret. 02401_ Machine disabled. 02407_ Autobeam Turret destroyed. 02410_ Acquired 9 matter. 02416_ Acquired 16 matter. 02417_ Acquired 12 matter. Map ----- +----------------------------------------------------+ | ????????????????????### ## #???#### ## | | ???????????????????#### #??## ## | | ??????????????????## ## #### # | | ?????????????????## ##### ## # | | ?????????????????# ##??## ## ## ## | | ??????????????#### #### ## #### | | ??????????????# #### #### ## | | ??????????????# #??### ## #??## | | ??????????????# ##????# ##?# ?## | | ??????????????## #?????# ##???# #### | | ???????????????## #????## #?????##### | | ????????????????# ##????# #????????# | | ????????????????#######??# #????????# | | ????????????????????# #### ##????????####### | | ???????????????????## ## #???????????????## | | ??????????????????## #????????????????## | | ?????????????????## #?????????????????? | | ?????????????????# ##?????????????????? | | ?????????????????# ##??????????????????? | | ???????????????### #???????????????????? | | ??????????????## #######???????? ?????????? | | ??????????????# ###???????????? ?????????? | | ??????????????# ####????????? ????????? | | ??????????????# O ##?????? ????????? | | ??????????????## ###?? ???????? | | ???????????????## @;# ???????? | | ????????????????# RR ???????? | | ????????????????# ???????? | | ????????????????# #### ???????? | | ????????????????## #????? ## ????????? | | ?????????????????## [ ##????????#???????????? | | ??????????????????# ##?????????????????????? | | ?????????????????? #??????????????????????? | | ????????????????? #??????????????????????? | | ????????????????### ??????????????????????? | | ??????????????????####= ?????????????????????? | | ?????????????????????# ???????????????????### | | ?????????????????????# ??????????????????## | | ?????????????????????# ?????????????????## | | ?????????????????????? ?????????????????## | | ?????????????????????? ??????????????????# | | ?????????????????????????????????????????# | | ?????????????????????????????????????????## | | ??????????????????????????????????????????# | | ??????????????????????????????????????????# | | ??????????????????????????????????????????# | | ??????????????????????????????????????????# | | ??????????????????????????????????????????# | | ??????????????????????????????????????????# | | ??????????????????????????????????????????# # | +----------------------------------------------------+ Best States ------------- Heat Dissipation 39 Energy Generation 14 Energy Capacity 250 Matter Stores 300 Matter Capacity 300 Sight Range 16 Terrain Scan Density 10 Evasion (%) 40 Recoil Reduction 2 Item Schematics ----------------- None Robot Schematics ------------------ None Fabricated ------------ Nothing Repaired ---------- Lgt. Treads | 45% | -10/Materials Studied --------- None Alien Tech Used ----------------- None Achievements -------------- None Challenges ------------ None Game ------ Seed ArmorGunSuite Manual? 0 Play Time 00:20:13 Cumulative 460.2 hours Start 2026.02.18 @ 15:53:14 End 2026.02.18 @ 16:09:58 Sessions 1 Manual Loads 0 Difficulty Rogue Special Mode None Game No. 219 Rogue 219 Adventurer 0 Explorer 0 Win Type - Total 15 Types 8/0/5/2/0/0/0/0/0/0 Lore% 70 Gallery% 71 Achievement% 53 Wizard Run 0 Options --------- Layout 0 ASCII 0 Keyboard 0 Movement Numpad Keybinds 0 Fullscreen 1 Font 18/SmallcapsGlow Map View 76x50 Zoom Use 0% Tactical HUD 1 Map Filters NONE Filters NONE Steam 1 RUN: 5501d450-d0ac-4567-9a20-4939f41c8cd2